bitfinex/quotes_ETHUSD_20220226
["timestamp","ask_amount","ask_price","bid_price","bid_amount"]
[1645904743070,0.51,2823.5,2823.4,0.00455107]
[1645904743270,0.51,2823.5,2822.8,1.13771872]
[1645904743471,0.51,2823.5,2823.3,0.0045512]
[1645904743881,0.6,2823.6,2823.3,0.0045512]
[1645904744076,0.3,2823.6,2823.3,0.0045512]
[1645904744271,0.3,2823.7,2823.3,0.0045512]
[1645904744472,0.3,2823.7,2823.0,0.00371872]
[1645904744672,0.3,2823.7,2823.3,0.00455116]
[1645904744872,0.81,2823.8,2823.3,0.00455116]
[1645904745073,0.81,2823.8,2822.8,3.27141589]
[1645904745274,0.81,2823.8,2822.8,3.22664788]
[1645904745875,0.88614,2823.7,2822.8,3.22664788]
[1645904746807,0.88614,2823.7,2822.8,2.10216085]
[1645904748308,0.00418196,2823.4,2822.8,2.10726218]
[1645904748511,0.00418196,2823.4,2823.0,1.43124873]
[1645904748709,0.00418196,2823.4,2822.8,2.10726218]
[1645904749213,1.18614,2823.7,2822.8,1.96056085]
[1645904749610,0.00418196,2823.2,2822.8,1.96566211]
[1645904750452,1.18614,2823.7,2822.8,1.96056085]
[1645904750650,1.69614,2823.7,2822.8,1.96056085]
[1645904750851,0.00418196,2823.1,2822.8,1.13910122]
[1645904751055,1.69614,2823.7,2823.1,0.00732145]
[1645904755503,0.00417716,2823.5,2823.1,0.00732145]
[1645904756108,0.88624,2823.4,2823.1,0.00732145]
[1645904756307,1.18624,2823.4,2823.1,0.00732145]
[1645904756707,1.19041716,2823.4,2823.1,0.00732145]
[1645904757559,1.18624,2823.4,2823.1,0.00732145]
[1645904757960,1.19041716,2823.4,2823.1,0.00732145]
[1645904758763,1.18624,2823.4,2823.1,0.00732145]
[1645904759160,1.19041716,2823.4,2823.1,0.00732145]
[1645904759865,0.30417716,2823.4,2823.1,0.00732145]
[1645904760061,0.3,2823.4,2823.1,0.00732145]
[1645904760265,0.00417716,2823.4,2823.1,0.00732145]
[1645904761315,0.51,2823.5,2823.1,0.00732145]
[1645904761518,0.00417716,2823.4,2823.1,0.00732145]
[1645904762522,0.81,2823.5,2823.1,0.00732145]
[1645904762719,0.00417716,2823.4,2823.1,0.00732145]
[1645904763719,0.3,2823.6,2823.1,0.00732145]
[1645904763918,0.00417716,2823.4,2823.1,0.00732145]
[1645904764762,0.3,2823.8,2823.2,1.49705095]
[1645904764967,0.3,2823.8,2823.4,1.30502896]
[1645904765285,2.34135053,2824.1,2823.2,0.00370217]
[1645904765286,0.00417716,2823.4,2823.2,0.00370217]
[1645904765468,0.00417716,2823.4,2823.1,0.00732145]
[1645904765668,0.00417716,2823.4,2823.2,1.49696344]
[1645904766071,1.64135053,2824.1,2823.2,1.49696344]
[1645904766072,1.3,2824.1,2823.2,1.49696344]
[1645904766269,0.00417716,2823.4,2823.2,2.38293344]
[1645904766470,0.00417716,2823.4,2823.3,2.6589307]
[1645904767070,0.00417716,2823.4,2823.3,1.16196726]
[1645904767273,2.22739053,2824.0,2823.3,1.16196726]
[1645904767473,0.00417716,2823.5,2823.3,2.66266268]
[1645904767672,0.00417716,2823.5,2823.3,1.16196726]
[1645904768075,0.00417716,2823.5,2823.2,0.88597]
[1645904768276,0.00417716,2823.5,2823.3,1.49700232]
[1645904768504,1.18604,2824.0,2823.3,1.49700232]
[1645904768709,1.18604,2824.0,2823.3,1.50070449]
[1645904768710,0.00417716,2823.5,2823.3,1.50070449]
[1645904768911,0.00417716,2823.5,2823.3,1.49700232]
[1645904769108,0.00417716,2823.5,2823.1,0.00732145]
[1645904769710,0.51,2823.4,2823.1,0.00732145]
[1645904769911,0.51417716,2823.4,2823.1,0.00732145]
[1645904770314,1.77277,2823.3,2823.1,0.00732145]
[1645904770515,0.51,2823.2,2823.1,0.00732145]
[1645904770711,0.81,2823.2,2823.1,0.00732145]
[1645904771713,1.0785,2823.2,2823.1,0.00732145]
[1645904771913,2.85128,2823.2,2823.1,2.145e-05]
[1645904772116,11.5,2823.1,2822.5,0.00370217]
[1645904772378,11.5,2823.1,2822.8,0.00510291]
[1645904772379,0.51,2823.0,2822.8,0.00510291]
[1645904772580,0.99008108,2823.0,2822.8,0.00510291]
[1645904772877,0.18008108,2822.9,2822.8,0.00510291]
[1645904773080,0.69008108,2822.9,2822.8,0.00510291]
[1645904773277,0.69008108,2822.9,2822.2,0.00370217]
[1645904773479,0.69008108,2822.9,2822.7,0.00510294]
[1645904773879,1.39661,2822.9,2822.7,0.00510294]
[1645904774082,0.00417679,2823.2,2822.7,0.00510294]
[1645904774479,1.01,2823.7,2822.8,1.49717539]
[1645904774679,1.01,2823.7,2822.9,3.6416]
[1645904774881,0.00125308,2823.2,2822.9,3.64530217]
[1645904775081,0.00125308,2823.2,2822.8,2.32719315]
[1645904775280,0.00125308,2823.2,2822.9,1.4970724]
[1645904775484,0.00125308,2823.2,2822.9,4.9970724]
[1645904775686,0.51,2823.7,2823.0,1.4970724]
[1645904776007,0.00417708,2823.2,2822.9,0.00370217]
[1645904776207,0.00417708,2823.2,2822.9,1.49710225]
[1645904776610,0.00417708,2823.2,2822.8,2.33211948]
[1645904776809,5.35466081,2823.7,2822.8,2.32719315]
[1645904777013,0.51,2823.7,2822.8,0.88984217]
[1645904777211,0.00417708,2823.2,2822.8,0.8947685]
[1645904777419,0.00417708,2823.2,2822.8,0.89106633]
[1645904777617,0.00417708,2823.2,2822.8,0.00492633]
[1645904778022,0.51,2823.4,2822.6,1.19540217]
[1645904778223,1.69626,2823.4,2822.6,1.19540217]
[1645904778417,0.00417701,2823.2,2822.8,0.00492631]
[1645904779323,0.51,2823.7,2822.6,2.07791]
[1645904779520,0.00417701,2823.2,2822.8,0.00493226]
[1645904779747,0.00417701,2823.2,2822.8,0.00863443]
[1645904779948,0.00417701,2823.2,2822.8,0.00493226]
[1645904780451,0.51417701,2823.2,2822.8,0.00493226]
[1645904780649,0.51,2823.2,2822.6,1.1917]
[1645904780856,0.88637,2823.0,2822.8,0.00493226]
[1645904781153,1.18637,2823.0,2822.8,0.00493226]
[1645904781757,1.18637,2823.0,2822.5,0.00370217]
[1645904781956,1.18637,2823.0,2822.4,1.49725283]
[1645904783159,1.18637,2823.0,2822.6,0.00474119]
[1645904784207,1.18637,2823.0,2822.3,0.14530217]
[1645904784409,1.18637,2823.0,2822.7,0.00474107]
[1645904784610,1.69637,2823.0,2822.7,0.00474107]
[1645904785211,1.69637,2823.0,2822.3,0.10004324]
[1645904785410,1.69637,2823.0,2822.4,1.49729625]
[1645904785612,1.69637,2823.0,2822.7,0.00474338]
[1645904786712,1.69637,2823.0,2822.3,0.10004324]
[1645904786910,1.69637,2823.0,2822.4,1.49720955]
[1645904787384,1.69637,2823.0,2822.4,3.16282459]
[1645904787564,0.04644,2823.2,2822.5,1.85580955]
[1645904787965,3.2472,2823.6,2822.5,1.85580955]
[1645904787966,3.80364,2823.6,2822.5,1.85580955]
[1645904788169,3.7572,2823.6,2822.6,1.85580955]
[1645904788364,3.7572,2823.6,2822.7,1.49720955]
[1645904788671,3.7572,2823.6,2822.8,0.88614]
[1645904788865,0.51,2823.6,2822.9,1.49720955]
[1645904789066,1.77247,2823.7,2822.9,1.49720955]
[1645904789264,0.0012567,2823.3,2822.9,1.49720955]
[1645904790069,0.9326,2823.8,2822.9,1.49720955]
[1645904790268,0.9326,2823.8,2823.0,0.00370217]
[1645904790468,0.00418901,2823.2,2823.0,0.00370217]
[1645904790668,0.00418901,2823.2,2822.9,1.49720955]
[1645904791010,0.00418901,2823.2,2822.8,0.88614]
[1645904791398,1.18616,2823.8,2822.8,0.88614]
[1645904791602,0.00418901,2823.1,2822.9,0.00370217]
[1645904791802,0.00418901,2823.1,2822.8,0.88614]
[1645904792603,5.68616,2823.8,2822.8,0.88614]
[1645904792903,0.00418901,2823.1,2822.9,0.00370217]
[1645904793103,0.00418901,2823.1,2822.8,0.88614]
[1645904793505,0.00418901,2823.1,2822.8,1.77214]
[1645904793710,1.34466081,2824.1,2823.0,0.3586]
[1645904793907,1.34466081,2824.2,2823.2,0.88594]
[1645904794506,1.64466081,2824.2,2823.2,0.88594]
[1645904794755,1.64466081,2824.2,2823.2,1.24454]
[1645904795364,0.00418901,2823.8,2823.2,0.88594]
[1645904796163,2.34466081,2824.1,2823.2,1.24454]
[1645904796372,0.00418901,2823.6,2823.2,1.24454]
[1645904797164,0.00418901,2823.6,2823.4,1.38570503]
[1645904797366,2.64466081,2824.2,2823.5,0.88593]
[1645904797565,0.3,2824.2,2823.5,0.88593]
[1645904797865,1.3,2824.2,2823.5,0.88593]
[1645904798065,0.3,2824.2,2823.5,0.88593]
[1645904798265,1.69110081,2824.3,2823.5,0.88593]
[1645904798702,0.00418901,2824.0,2823.5,0.88593]
[1645904799708,1.64466081,2824.2,2823.5,0.88593]
[1645904799908,0.3,2824.2,2823.5,0.88593]
[1645904800107,0.00418901,2823.9,2823.5,0.88593]
[1645904800909,1.64466081,2824.2,2823.5,0.88593]
[1645904801108,0.00418901,2823.8,2823.5,0.88593]
[1645904801516,0.00418901,2823.8,2823.3,1.1814]
[1645904802249,0.81,2823.9,2823.3,1.1814]
[1645904802454,0.00418901,2823.7,2823.3,1.1814]
[1645904803258,0.88611,2823.8,2823.3,1.1814]
[1645904803757,0.00418901,2823.6,2823.3,1.1814]
[1645904804559,0.51,2823.7,2823.3,1.1814]
[1645904804760,0.00418901,2823.6,2823.1,0.00370217]
[1645904804959,0.51418901,2823.6,2823.0,1.77204]
[1645904805659,0.51,2823.6,2823.0,1.77204]
[1645904806115,0.00418901,2823.4,2823.0,1.77204]
[1645904806915,0.51,2823.6,2823.0,1.77204]
[1645904807118,0.00418901,2823.3,2823.0,1.77204]
[1645904808123,0.51,2823.6,2823.0,1.77204]
[1645904808323,0.00418901,2823.3,2823.0,1.77204]
[1645904809425,0.51,2823.6,2823.0,1.77204]
[1645904809627,0.00418901,2823.3,2823.0,1.77204]
[1645904810965,0.00418901,2823.3,2822.8,0.00370217]
[1645904811178,0.00418901,2823.3,2822.7,1.49719517]
[1645904811179,0.51,2823.2,2822.7,1.49719517]
[1645904811368,0.51,2823.2,2822.6,0.0047295]
[1645904811369,3.5,2823.1,2822.6,0.0047295]
[1645904811568,0.51,2823.0,2822.6,0.0047295]
[1645904811773,0.51,2823.0,2822.1,0.00370217]
[1645904811774,3.5,2822.9,2822.1,0.00370217]
[1645904811965,0.51,2822.8,2822.1,1.49735912]
[1645904812166,0.51,2822.8,2822.1,1.50106129]
[1645904812366,0.81,2822.8,2822.1,1.49735912]
[1645904812567,0.88654,2822.6,2822.1,1.49735912]
[1645904812765,0.51,2822.5,2822.1,1.49735912]
[1645904813165,0.51,2822.5,2822.2,0.00461977]
[1645904813604,0.51,2822.8,2822.2,0.00461977]
[1645904813812,0.51,2822.8,2822.3,1.49730613]
[1645904814512,0.51,2822.8,2822.4,1.50192565]
[1645904814707,0.51,2822.8,2822.4,0.00461952]
[1645904815307,0.51,2822.8,2822.1,0.89009217]
[1645904815511,0.51,2822.8,2822.2,1.4972768]
[1645904815808,0.51,2822.8,2822.5,0.00473908]
[1645904816511,0.81,2822.8,2822.3,0.00370217]
[1645904816710,0.88648,2822.6,2822.1,1.49731862]
[1645904816909,1.39648,2822.6,2822.0,0.5]
[1645904817112,1.69648,2822.6,2822.0,0.5]
[1645904817767,1.69648,2822.6,2822.1,1.49737801]
[1645904818170,1.69648,2822.6,2822.0,0.5]
[1645904820471,1.69648,2822.6,2822.2,0.00496581]
[1645904820672,0.51,2822.6,2822.2,0.00496581]
[1645904820871,0.04644,2822.8,2822.2,0.00496581]
[1645904821119,0.00379903,2823.0,2822.2,0.00496581]
[1645904821314,1.1317,2823.2,2822.3,1.49717348]
[1645904821514,0.51,2823.1,2822.4,0.00370217]
[1645904821712,0.5137993,2823.0,2822.4,0.00475765]
[1645904822515,0.51,2823.0,2822.3,0.00370217]
[1645904822720,0.88639,2822.9,2822.2,1.2396]
[1645904822918,0.88639,2822.9,2822.6,0.00487415]
[1645904823719,0.88639,2822.9,2822.3,0.00370217]
[1645904823919,0.88639,2822.9,2822.2,1.2396]
[1645904824222,0.88639,2822.9,2822.6,0.00487418]
[1645904825165,0.88639,2822.9,2822.3,0.00370217]
[1645904825467,0.88639,2822.9,2822.6,0.00508205]
[1645904826270,4.01,2822.8,2822.3,0.00370217]
[1645904826474,1.77321,2822.7,2822.6,0.0048248]
[1645904826670,2.58321,2822.7,2822.6,0.0048248]
[1645904827171,3.58321,2822.7,2822.6,0.0048248]
[1645904827376,6.08321,2822.7,2822.1,0.00370217]
[1645904827570,6.08321,2822.7,2822.5,0.00482485]
[1645904827571,7.12963,2822.7,2822.5,0.00482485]
[1645904827773,0.88658,2822.6,2822.5,0.00482485]
[1645904827971,1.39658,2822.6,2822.5,0.00482485]
[1645904828529,4.89658,2822.6,2821.9,1.03383338]
[1645904828718,5.89658,2822.6,2821.9,1.03383338]
[1645904829021,5.89658,2822.6,2822.4,0.00482499]
[1645904829223,3.5,2822.5,2822.4,0.00482499]
[1645904829421,4.01,2822.5,2822.4,0.00482499]
[1645904829618,5.31,2822.5,2822.4,0.00482499]
[1645904829819,1.77338,2822.4,2822.0,0.00370217]
[1645904830027,0.88667,2822.2,2821.9,1.04943461]
[1645904830219,0.51,2822.1,2821.9,1.04943461]
[1645904830823,0.81,2822.1,2821.9,1.04943461]
[1645904831020,0.81,2822.1,2821.9,1.03013121]
[1645904831320,0.81,2822.1,2821.9,1.03500509]
[1645904832121,0.81,2822.1,2821.9,1.03013121]
[1645904832366,0.04641,2822.5,2821.9,1.03500509]
[1645904832574,2.20559,2822.9,2821.9,1.03500509]
[1645904832793,4.51,2822.9,2821.9,1.03716852]
[1645904832967,4.01,2822.9,2821.9,1.03716852]
[1645904833166,0.51,2822.9,2821.9,1.03716852]
[1645904833371,0.51,2822.9,2821.9,1.03229464]
[1645904833372,3.54639,2822.8,2821.9,1.03229464]
[1645904833568,2.2831,2822.7,2821.9,1.03229464]
[1645904833773,3.5,2822.6,2822.3,0.00487333]
[1645904833967,0.88668,2822.4,2822.3,0.00487333]
[1645904834272,1.69668,2822.4,2822.3,0.00487333]
[1645904834667,1.77342,2822.3,2822.0,0.02614533]
[1645904834867,1.77342,2822.3,2822.2,0.00486542]
[1645904835070,2.28342,2822.3,2822.2,0.00486542]
[1645904835869,2.28342,2822.3,2822.0,0.02244316]
[1645904836113,2.28342,2822.3,2822.1,0.00486556]
[1645904836918,2.28342,2822.3,2822.0,0.02244316]
[1645904837323,2.28342,2822.3,2822.1,0.00486562]
[1645904838118,2.28342,2822.3,2822.0,0.02244316]
[1645904838422,5.78342,2822.3,2822.1,0.00486689]
[1645904838821,6.78342,2822.3,2822.1,0.00486689]
[1645904839420,6.78342,2822.3,2821.6,0.00370217]
[1645904839621,6.78342,2822.3,2822.1,0.00486689]
[1645904839858,3.28342,2822.3,2822.1,0.00486689]
[1645904840662,0.88675,2822.5,2821.6,0.02317267]
[1645904840663,0.04637,2822.7,2821.7,11.5]
[1645904840874,0.18854311,2823.0,2822.2,0.01213522]
[1645904841070,0.00346885,2823.0,2822.2,0.01213522]
[1645904841265,0.00346885,2823.0,2822.3,1.49712581]
[1645904841466,0.00346885,2823.0,2822.4,8.8586]
[1645904841663,0.00346885,2823.0,2822.5,0.3586]
[1645904841864,3.25486081,2824.1,2822.7,0.3586]
[1645904842165,0.51,2824.1,2822.6,5.34558203]
[1645904842364,0.51,2824.1,2822.8,3.5]
[1645904842567,0.81,2824.1,2822.8,3.5]
[1645904842967,0.8861,2823.8,2823.1,0.88604]
[1645904843162,0.8861,2823.8,2823.4,1.03789742]
[1645904843363,0.00418901,2823.6,2823.4,1.03789742]
[1645904843612,0.00418901,2823.6,2823.1,0.88604]
[1645904844218,1.1861,2823.8,2822.8,1.77208]
[1645904844417,0.00418901,2823.5,2822.8,1.77208]
[1645904844618,0.00418901,2823.5,2823.2,1.27301091]
[1645904844815,0.00418901,2823.5,2822.8,1.77208]
[1645904845424,1.1861,2823.8,2822.8,1.77208]
[1645904845718,0.00418901,2823.3,2823.0,1.18564514]
[1645904846519,1.23254,2823.8,2822.8,1.77208]
[1645904846722,0.88619,2823.5,2822.6,8.40224]
[1645904846929,0.00418901,2823.3,2822.6,3.00922223]
[1645904847124,0.00418901,2823.3,2822.6,1.23698223]
[1645904847367,0.51,2823.2,2822.6,1.23698223]
[1645904847567,0.51,2823.2,2822.6,0.00508223]
[1645904847769,1.77286,2823.1,2822.5,1.32562516]
[1645904847972,0.51418901,2823.0,2822.6,0.00508212]
[1645904848368,0.81418901,2823.0,2822.6,0.00508212]
[1645904848971,0.81418901,2823.0,2822.3,0.00370236]
[1645904848972,0.81,2823.0,2822.3,0.00370236]
[1645904849170,0.81,2823.0,2822.6,0.00508208]
[1645904849372,0.88641,2822.9,2822.6,0.00508208]
[1645904850171,0.88641,2822.9,2822.3,0.00370236]
[1645904850373,0.88641,2822.9,2822.1,2.7688]
[1645904850374,1.39641,2822.9,2822.6,0.00508205]
[1645904851420,1.39641,2822.9,2822.2,0.00370236]
[1645904851616,1.39641,2822.9,2822.1,2.7688]
[1645904851617,1.39641,2822.9,2822.6,0.00508205]
[1645904852018,1.81947,2822.8,2822.6,0.00508205]
[1645904852219,0.51,2822.7,2822.6,0.00508205]
[1645904852618,0.81,2822.7,2821.8,0.00370236]
[1645904852917,0.88649,2822.5,2822.0,0.02033185]
[1645904853224,1.18649,2822.5,2822.0,0.02033185]
[1645904853923,1.18649,2822.5,2821.8,0.00370236]
[1645904853924,2.46332108,2822.4,2821.8,0.00370236]
[1645904854120,2.46332108,2822.4,2821.4,1.121337]
[1645904854121,2.46332108,2822.4,2822.1,0.00508264]
[1645904854958,2.46332108,2822.4,2821.8,1.21365185]
[1645904854959,2.32966,2822.4,2821.8,1.21365185]
[1645904855162,2.32966,2822.4,2821.6,0.00370236]
[1645904855359,2.32966,2822.4,2822.1,0.00508264]
[1645904855763,2.28324,2822.4,2822.1,0.00508264]
[1645904856267,2.28324,2822.4,2821.6,0.00370236]
[1645904856468,2.28324,2822.4,2822.1,0.00482543]
[1645904857467,2.28324,2822.4,2821.8,0.00370236]
[1645904857666,2.28324,2822.4,2822.1,0.00482543]
[1645904858719,2.28324,2822.4,2821.8,0.00370236]
[1645904858917,2.28324,2822.4,2822.1,0.00482543]
[1645904859719,2.28324,2822.4,2821.6,0.00370236]
[1645904860117,2.28324,2822.4,2822.1,0.00482543]
[1645904860926,0.5,2822.2,2821.6,0.00370236]
[1645904861119,0.88665,2822.1,2821.5,2.85201988]
[1645904861319,0.88665,2822.1,2821.7,0.01807198]
[1645904861523,0.3,2822.2,2821.7,0.01807198]
[1645904861524,0.51,2822.0,2821.7,0.01807198]
[1645904861722,2.28376,2821.9,2821.7,0.01807198]
[1645904861921,2.58376,2821.9,2821.7,0.01807198]
[1645904862369,3.58376,2821.9,2821.7,1.17451457]
[1645904862579,1.0288527,2822.2,2821.8,3.5]
[1645904862580,0.188462,2822.2,2821.8,3.5]
[1645904862769,0.141962,2822.2,2821.7,1.17903244]
[1645904863167,0.441962,2822.2,2821.7,1.17903244]
[1645904863367,0.141962,2822.2,2821.7,1.17451457]
[1645904863770,0.88655,2822.4,2821.8,0.00451769]
[1645904864569,0.88655,2822.4,2821.7,1.17451457]
[1645904864973,0.88655,2822.4,2822.0,0.00450951]
[1645904865470,0.88655,2822.4,2822.0,0.00301353]
[1645904865870,0.88655,2822.4,2821.8,0.00370236]
[1645904866125,0.88655,2822.4,2821.7,1.17451457]
[1645904866926,0.51,2822.3,2821.7,1.17451457]
[1645904867324,0.88667,2822.2,2821.7,1.17451457]
[1645904867724,0.88667,2822.2,2821.7,1.15530663]
[1645904868025,0.88667,2822.2,2821.5,0.00370236]
[1645904868425,1.39667,2822.2,2821.5,1.49767608]
[1645904868631,1.39667,2822.2,2821.4,1.121337]
[1645904869027,1.39667,2822.2,2822.1,5.241e-05]
[1645904872671,1.39667,2822.2,2822.1,1.11154197]
[1645904872872,2.28322,2822.5,2822.1,1.11154197]
[1645904873072,0.88652,2822.6,2822.1,1.11154197]
[1645904873929,0.88652,2822.6,2822.1,5.241e-05]
[1645904874123,1.39652,2822.6,2822.1,5.241e-05]
[1645904874323,1.69652,2822.6,2821.7,0.00370236]
[1645904874526,1.77329,2822.5,2822.1,0.00508276]
[1645904874721,2.28329,2822.5,2822.1,0.00508276]
[1645904875523,2.28329,2822.5,2822.0,1.32021524]
[1645904875721,2.28329,2822.5,2822.1,0.00508274]
[1645904876622,2.28329,2822.5,2822.0,1.32021524]
[1645904876826,2.28329,2822.5,2822.1,0.00508274]
[1645904877865,2.28329,2822.5,2822.0,1.32021524]
[1645904878066,2.28143832,2822.5,2822.1,0.00508274]
[1645904879071,2.28143832,2822.5,2821.7,0.00370236]
[1645904879267,2.28143832,2822.5,2822.1,0.00508274]
[1645904880170,2.28143832,2822.5,2821.8,1.44264485]
[1645904880569,2.28143832,2822.5,2822.1,0.00508274]
[1645904881402,2.28143832,2822.5,2821.8,1.44264485]
[1645904881905,2.28143832,2822.5,2822.1,0.00508274]
[1645904882706,2.28143832,2822.5,2821.8,1.44264485]
[1645904882907,2.28143832,2822.5,2822.1,0.00508274]
[1645904883907,2.28143832,2822.5,2821.8,1.44264485]
[1645904884216,2.28143832,2822.5,2822.1,0.00508274]
[1645904885056,2.28143832,2822.5,2821.8,1.44264485]
[1645904885459,2.28143832,2822.5,2822.1,0.00508274]
[1645904886059,2.46302108,2822.9,2822.1,0.00508274]
[1645904886259,1.028327,2823.0,2821.8,1.44264485]
[1645904886459,1.028327,2823.0,2822.1,0.00508274]
[1645904886460,1.03251896,2823.0,2822.1,0.00508274]
[1645904886864,0.89058196,2823.0,2822.1,0.00508274]
[1645904887060,1.19058196,2823.0,2822.1,0.00508274]
[1645904887261,0.51,2822.9,2822.1,0.00508274]
[1645904887461,0.51,2822.9,2821.9,0.00370236]
[1645904887659,0.51,2822.9,2821.9,1.50121442]
[1645904887861,0.51,2822.9,2822.1,0.00508285]
[1645904888061,0.51,2822.9,2822.1,1.2045476]
[1645904888726,0.01625032,2822.4,2822.1,1.19946475]
[1645904888926,0.01625032,2822.4,2822.1,2.09091758]
[1645904889537,0.1430543,2823.2,2822.4,0.03956734]
[1645904889730,0.1430543,2823.2,2822.6,0.3586]
[1645904889931,0.04723,2823.2,2822.7,1.99735103]
[1645904890129,0.04723,2823.2,2822.8,1.49705657]
[1645904890328,0.04723,2823.2,2822.9,0.1416]
[1645904890530,0.04723,2823.2,2823.0,1.19123329]
[1645904891029,0.04723,2823.2,2823.0,2.07720329]
[1645904891228,0.00347591,2823.8,2822.7,1.1323]
[1645904891229,1.34322746,2823.8,2822.7,1.1323]
[1645904891430,0.00125782,2823.2,2822.7,1.1323]
[1645904891628,0.98225782,2823.2,2822.7,1.1323]
[1645904891830,0.98225782,2823.2,2822.6,0.1416]
[1645904892034,0.98225782,2823.2,2822.5,2.8254]
[1645904892256,0.981,2823.2,2822.5,2.8254]
[1645904892462,0.981,2823.2,2822.4,1.21306734]
[1645904892662,0.981,2823.2,2822.6,0.00508207]
[1645904892663,0.00418212,2823.1,2822.6,0.00508207]
[1645904893065,0.51418212,2823.1,2822.6,0.00508207]
[1645904893263,4.01418212,2823.1,2822.6,0.00508207]
[1645904893465,4.01,2823.1,2822.4,0.03956734]
[1645904893665,0.22811108,2823.0,2822.4,0.03956734]
[1645904893864,0.51,2822.9,2822.6,0.00508205]
[1645904894066,0.88653,2822.7,2822.6,0.00508205]
[1645904894263,5.19653,2822.7,2822.6,0.00508205]
[1645904894462,1.69653,2822.7,2821.9,2.33277955]
[1645904894668,2.69653,2822.7,2821.9,2.31244625]
[1645904894863,1.69653,2822.7,2821.7,2.53960539]
[1645904895064,1.7731,2822.6,2822.5,0.0050821]
[1645904895270,3.3148,2822.6,2822.5,0.0050821]
[1645904895763,3.42821,2822.6,2822.5,0.0050821]
[1645904896022,3.42821,2822.6,2821.6,1.456]
[1645904896023,1.5417,2822.6,2821.8,0.3586]
[1645904896211,1.0317,2822.6,2821.9,4.99749706]
[1645904896409,0.00125839,2822.9,2822.0,1.49749706]
[1645904896610,0.00125839,2822.9,2822.1,3.5]
[1645904896816,0.00125839,2822.9,2822.2,1.49749706]
[1645904897014,0.3,2823.0,2822.2,1.49749706]
[1645904897221,2.70441259,2823.1,2822.5,1.08921293]
[1645904897416,0.00419456,2822.9,2822.5,1.08921293]
[1645904897617,0.00311746,2822.9,2822.5,1.08921293]
[1645904898218,1.18634,2823.0,2822.2,1.138]
[1645904899220,1.18634,2823.0,2822.2,2.23308297]
[1645904899521,2.08075259,2823.0,2822.2,2.23308297]
[1645904899765,0.00125841,2822.9,2822.2,2.23308297]
[1645904900761,1.18634,2823.0,2822.2,2.23308297]
[1645904900961,0.00125839,2822.9,2822.2,2.23308297]
[1645904901963,2.08075259,2823.0,2822.2,2.23308297]
[1645904902166,0.00419194,2822.9,2822.4,0.00508223]
[1645904903165,2.08075259,2823.0,2822.2,2.23676793]
[1645904903365,0.00419209,2822.9,2822.5,0.0050821]
[1645904904207,2.08075259,2823.0,2822.2,2.23676793]
[1645904904406,2.08075259,2823.0,2822.2,2.23308297]
[1645904904606,0.00419216,2822.9,2822.6,0.00508203]
[1645904905212,0.81,2822.8,2822.6,0.00508203]
[1645904905413,1.75083259,2822.8,2822.0,0.00368496]
[1645904905610,0.88656,2822.6,2821.8,1.20078496]
[1645904905814,0.51,2822.5,2821.9,0.02033295]
[1645904906012,0.81,2822.5,2821.9,0.02033295]
[1645904906611,0.81,2822.5,2821.8,1.20078496]
[1645904907014,0.81,2822.5,2822.1,0.00508271]
[1645904907869,0.88657,2822.3,2821.8,1.20078496]
[1645904908074,1.69657,2822.3,2822.2,0.00508257]
[1645904909172,1.77351,2822.2,2821.5,0.00368496]
[1645904909373,1.77351,2822.2,2821.4,2.332337]
[1645904909374,0.51,2822.1,2821.4,2.332337]
[1645904909571,0.8868,2821.9,2821.7,0.02033362]
[1645904909773,0.51,2821.8,2821.7,0.02033362]
[1645904910372,0.51,2821.8,2821.4,1.121337]
[1645904910571,2.28362,2821.8,2821.6,0.00508332]
[1645904911417,2.28362,2821.8,2821.4,1.121337]
[1645904911818,2.28362,2821.8,2821.6,0.00508339]
[1645904912724,2.28362,2821.8,2821.4,1.121337]
[1645904912918,2.28362,2821.8,2821.6,0.00508339]
[1645904913922,2.28362,2821.8,2821.4,1.121337]
[1645904914120,2.28362,2821.8,2821.6,0.00508339]
[1645904915168,2.28362,2821.8,2821.4,1.121337]
[1645904915378,2.28362,2821.8,2821.6,0.00508339]
[1645904916270,2.28362,2821.8,2821.4,1.121337]
[1645904916471,2.28362,2821.8,2821.6,0.00508339]
[1645904917471,2.28362,2821.8,2821.4,1.121337]
[1645904917671,2.28362,2821.8,2821.6,0.00508339]
[1645904918715,2.28362,2821.8,2821.4,1.121337]
[1645904918917,2.28362,2821.8,2821.6,0.00508339]
[1645904919918,2.28362,2821.8,2821.4,1.121337]
[1645904920219,2.28362,2821.8,2821.6,0.0038098]
[1645904920431,2.28362,2821.8,2821.4,1.121337]
[1645904920432,11.54644,2821.7,2821.4,1.121337]
[1645904920625,11.0,2821.5,2821.1,0.02402156]
[1645904920821,1.39719,2821.4,2821.1,0.0203366]
[1645904921022,1.69719,2821.4,2820.3,1.12978496]
[1645904921221,1.77443,2821.1,2820.3,1.07978496]
[1645904921424,4.01,2821.0,2820.3,1.07978496]
[1645904921621,4.01,2821.0,2820.7,0.01385803]
[1645904921824,4.89722,2821.0,2820.3,0.99364299]
[1645904922022,0.3,2820.9,2820.3,0.99364299]
[1645904922260,2.28449,2820.8,2820.3,0.99364299]
[1645904922467,2.58449,2820.8,2820.3,0.99364299]
[1645904922668,2.58449,2820.8,2820.1,0.00368496]
[1645904922865,3.58449,2820.8,2819.9,0.00368496]
[1645904923074,3.58449,2820.8,2819.7,1.49842315]
[1645904923267,3.58449,2820.8,2819.7,1.25210811]
[1645904923469,3.58449,2820.8,2819.8,0.00368496]
[1645904923870,0.88725,2820.5,2819.8,0.00368496]
[1645904924570,4.68725,2820.5,2819.8,0.00368496]
[1645904924770,1.18725,2820.5,2819.8,0.00368496]
[1645904924973,1.18725,2820.5,2820.0,0.0038086]
[1645904926031,1.18725,2820.5,2819.8,0.00368496]
[1645904926223,1.18725,2820.5,2820.1,0.00508406]
[1645904927024,1.18725,2820.5,2819.8,0.00368496]
[1645904927425,1.18725,2820.5,2819.6,1.02370796]
[1645904928425,0.51,2820.4,2819.6,1.02370796]
[1645904928827,0.51,2820.4,2819.6,2.24012609]
[1645904929859,0.51,2820.4,2819.6,2.24392109]
[1645904930259,0.88722,2820.2,2819.6,1.02750296]